[Event "45th FIDE Womens Olympiad 2024"]
[Site "Budapest"]
[Date "2024.09.16"]
[Round "6.163"]
[White "Mosweu, Atlang Amolemo"]
[Black "Giulian, Rosemary A"]
[Result "0-1"]
[ECO "E11"]
[WhiteElo "1797"]
[BlackElo "1922"]
[PlyCount "114"]
[EventDate "2024.09.05"]
[EventType "team-tourn"]
[EventCountry "HUN"]
[WhiteTeam "Botswana"]
[BlackTeam "Scotland"]
[WhiteTeamCountry "BOT"]
[BlackTeamCountry "SCO"]
[TimeControl "40/5400+30:1800+30"]

1. d4 e6 2. c4 Nf6 3. Nc3 Bb4 4. Bd2 O-O 5. Nf3 a5 6. e3 b6 7. Bd3 Bb7 8. O-O d5 9. cxd5 exd5 10. Rc1 Ne4 11. a3 Be7 12. Ne2 g6 13. Bc3 Nxc3 14. Rxc3 Nd7 15. Qd2 Nf6 16. Ng3 Ne4 17. Bxe4 dxe4 18. Ne5 c5 19. Rc2 f6 20. Nc4 b5 21. Qc3 bxc4 22. dxc5 Qd3 23. Rfc1 Qxc3 24. Rxc3 f5 25. Rxc4 Ba6 26. R4c2 Bd3 27. Rd2 Rfc8 28. b4 axb4 29. axb4 Rab8 30. Ne2 Bxe2 31. Rxe2 Rxb4 32. Rec2 Rxc5 33. Rxc5 Bxc5 34. g3 Rb5 35. Kg2 Bb6 36. Rc2 Rc5 37. Rd2 Rc3 38. Rb2 Rc6 39. Kf1 Rd6 40. Kg2 Kf7 41. Rc2 Rd3 42. Rb2 Bxe3 43. fxe3 Rxe3 44. Rb7+ Kg8 45. Rb2 Rd3 46. Kf1 Rd7 47. Ke2 Kg7 48. Kf2 Kf6 49. Ke2 Kg5 50. Kf2 Rd6 51. Kg2 Re6 52. Rf2 Kf6 53. Rc2 g5 54. Rf2 Ke5 55. Rb2 f4 56. Rb5+ Kf6 57. gxf4 gxf4 {0-} 0-1

[Event "45th FIDE Womens Olympiad 2024"]
[Site "Budapest"]
[Date "2024.09.16"]
[Round "6.164"]
[White "Bhatia, Kanishka"]
[Black "Rebatenne, Boitshepo"]
[Result "1-0"]
[ECO "D13"]
[WhiteElo "1908"]
[BlackElo "1696"]
[PlyCount "157"]
[EventDate "2024.09.05"]
[EventType "team-tourn"]
[EventCountry "HUN"]
[WhiteTeam "Scotland"]
[BlackTeam "Botswana"]
[WhiteTeamCountry "SCO"]
[BlackTeamCountry "BOT"]
[TimeControl "40/5400+30:1800+30"]

1. d4 d5 2. c4 c6 3. cxd5 cxd5 4. Nc3 Nf6 5. Nf3 Bf5 6. Bg5 e6 7. e3 Be7 8. Bb5+ Nbd7 9. Ne5 O-O 10. Nxd7 Nxd7 11. Bxe7 Qxe7 12. Bd3 Bxd3 13. Qxd3 a6 14. O-O Rac8 15. Rfe1 Nf6 16. a3 Qd7 17. Rad1 Rc7 18. f3 Rfc8 19. e4 dxe4 20. fxe4 Rd8 21. Rf1 b5 22. Qg3 Ne8 23. d5 Qe7 24. dxe6 fxe6 25. Rxd8 Qxd8 26. Qe5 Qd6 27. Qg5 Qc5+ 28. Qxc5 Rxc5 29. Rd1 Rc7 30. Kf2 Kf7 31. Ke3 Ke7 32. e5 Rc5 33. Kd4 Rc4+ 34. Ke3 Rc5 35. Ke4 Rc4+ 36. Rd4 Rc6 37. h3 Nc7 38. Kd3 Na8 39. Ne4 Nc7 40. Nc3 Rc5 41. Rg4 Kf7 42. Rf4+ Ke7 43. Re4 Na8 44. a4 Nc7 45. b4 Rc6 46. axb5 axb5 47. Re2 Ra6 48. Ra2 Rxa2 49. Nxa2 Kd7 50. Kd4 Kc6 51. Nc1 Nd5 52. Nd3 g5 53. g3 h5 54. h4 gxh4 55. gxh4 Ne7 56. Nc5 Nf5+ 57. Ke4 Ng7 58. Nb3 Nf5 59. Nd4+ Nxd4 60. Kxd4 Kb6 61. Ke3 Kc7 62. Kf4 Kc6 63. Kg5 Kd5 64. Kf6 Kc4 65. Kxe6 Kxb4 66. Kd6 Kc3 67. e6 b4 68. e7 b3 69. e8=Q b2 70. Qc8+ Kd2 71. Qb7 Kc2 72. Ke5 b1=Q 73. Qxb1+ Kxb1 74. Kf5 Kc2 75. Kg5 Kd3 76. Kxh5 Ke4 77. Kg5 Ke5 78. h5 Ke6 79. Kg6 1-0

[Event "45th FIDE Womens Olympiad 2024"]
[Site "Budapest"]
[Date "2024.09.16"]
[Round "6.165"]
[White "Noshin, Anjum"]
[Black "Quevedo, Andreina"]
[Result "1/2-1/2"]
[ECO "C77"]
[WhiteElo "2085"]
[BlackElo "1851"]
[PlyCount "60"]
[EventDate "2024.09.05"]
[EventType "team-tourn"]
[EventCountry "HUN"]
[WhiteTeam "Bangladesh"]
[BlackTeam "Uruguay"]
[WhiteTeamCountry "BAN"]
[BlackTeamCountry "URU"]
[TimeControl "40/5400+30:1800+30"]

1. e4 e5 2. Nf3 Nc6 3. Bb5 a6 4. Ba4 Nf6 5. d3 d6 6. c3 g6 7. O-O Bg7 8. Re1 O-O 9. Nbd2 b5 10. Bb3 Na5 11. Bc2 c5 12. Nf1 Qc7 13. Ng3 Bb7 14. Nh4 d5 15. Qf3 dxe4 16. dxe4 Nc4 17. b3 Nd6 18. Qe2 Nd7 19. Rd1 Rfd8 20. Bg5 f6 21. Be3 c4 22. b4 a5 23. a3 Nf8 24. f3 Ne6 25. Qf2 Nc8 26. Rxd8+ Qxd8 27. Rd1 Qe7 28. Qd2 Bc6 29. Ne2 axb4 30. axb4 Kf7 1/2-1/2

[Event "45th FIDE Womens Olympiad 2024"]
[Site "Budapest"]
[Date "2024.09.16"]
[Round "6.166"]
[White "Fabra, Nahiara"]
[Black "Ahmed, Walijah"]
[Result "0-1"]
[ECO "B21"]
[WhiteElo "1932"]
[BlackElo "1936"]
[PlyCount "100"]
[EventDate "2024.09.05"]
[EventType "team-tourn"]
[EventCountry "HUN"]
[WhiteTeam "Uruguay"]
[BlackTeam "Bangladesh"]
[WhiteTeamCountry "URU"]
[BlackTeamCountry "BAN"]
[TimeControl "40/5400+30:1800+30"]

1. e4 c5 2. Nf3 e6 3. d4 cxd4 4. c3 dxc3 5. Nxc3 Nc6 6. Bc4 a6 7. O-O Nge7 8. Bg5 h6 9. Bh4 g5 10. Bg3 Ng6 11. Nd5 d6 12. Ne3 Be7 13. Re1 Kf8 14. h3 h5 15. a3 b5 16. Bb3 Bb7 17. Qd2 Nge5 18. Nxe5 dxe5 19. Qc3 Qd4 20. Rad1 Qxc3 21. bxc3 Rd8 22. Rxd8+ Bxd8 23. a4 Ke7 24. axb5 axb5 25. c4 b4 26. Ba4 f6 27. f3 Bb6 28. Bf2 Nd4 29. Nc2 Nxc2 30. Bxc2 Bxf2+ 31. Kxf2 Ra8 32. Bb3 Ra3 33. Rb1 Ba6 34. Kg3 Kd6 35. c5+ Kxc5 36. Rc1+ Kd6 37. Rd1+ Ke7 38. Rb1 Bd3 39. Rb2 Kd6 40. Bxe6 Kxe6 41. Rxb4 Ra2 42. Rb6+ Kf7 43. h4 Bf1 44. hxg5 Rxg2+ 45. Kh4 Rxg5 46. Rb7+ Kg6 47. Rb8 Be2 48. Rb3 Bxf3 49. Rxf3 Rg4+ 50. Kh3 Rxe4 {0-} 0-1

[Event "45th FIDE Womens Olympiad 2024"]
[Site "Budapest"]
[Date "2024.09.16"]
[Round "6.167"]
[White "Wadifa, Ahmed"]
[Black "Cardozo, Camila"]
[Result "1-0"]
[ECO "C03"]
[WhiteElo "1988"]
[BlackElo "1673"]
[PlyCount "111"]
[EventDate "2024.09.05"]
[EventType "team-tourn"]
[EventCountry "HUN"]
[WhiteTeam "Bangladesh"]
[BlackTeam "Uruguay"]
[WhiteTeamCountry "BAN"]
[BlackTeamCountry "URU"]
[TimeControl "40/5400+30:1800+30"]

1. e4 e6 2. d4 d5 3. Nd2 Be7 4. Bd3 c5 5. c3 cxd4 6. cxd4 dxe4 7. Nxe4 Nf6 8. Nf3 O-O 9. O-O Nxe4 10. Bxe4 Nd7 11. Bf4 Nf6 12. Bc2 b6 13. Qe2 Bb7 14. Rad1 Rc8 15. Bb1 Qd5 16. Rfe1 Bb4 17. Rf1 Rfd8 18. a3 Be7 19. Rfe1 Qb3 20. Ne5 Qd5 21. f3 Qa5 22. Nxf7 Re8 23. Ng5 Bf8 24. Be5 h6 25. Bxf6 hxg5 26. Qd3 Qf5 27. Qxf5 exf5 28. Bxg5 g6 29. Rxe8 Rxe8 30. Rc1 Bd5 31. Kf2 Bg7 32. Be3 a6 33. g3 b5 34. Rc5 Bc4 35. Rc6 Re6 36. Rc8+ Kf7 37. h4 Rd6 38. h5 gxh5 39. Bxf5 Bxd4 40. Bxd4 Rxd4 41. Ke3 Rd1 42. Rc6 Kg7 43. Rg6+ Kf7 44. Rc6 Kg7 45. Rxa6 Re1+ 46. Kf4 Rf1 47. Be4 Rf2 48. b4 Rg2 49. Rg6+ Kf7 50. Rh6 Ra2 51. Rxh5 Rxa3 52. Rh7+ Kf6 53. g4 Rb3 54. Bf5 Bf7 55. g5+ Ke7 56. g6 1-0

[Event "45th FIDE Womens Olympiad 2024"]
[Site "Budapest"]
[Date "2024.09.16"]
[Round "6.168"]
[White "Altesor, Caterina"]
[Black "Hamid, Rani"]
[Result "0-1"]
[ECO "B80"]
[WhiteElo "1741"]
[BlackElo "1900"]
[PlyCount "90"]
[EventDate "2024.09.05"]
[EventType "team-tourn"]
[EventCountry "HUN"]
[WhiteTeam "Uruguay"]
[BlackTeam "Bangladesh"]
[WhiteTeamCountry "URU"]
[BlackTeamCountry "BAN"]
[TimeControl "40/5400+30:1800+30"]

1. e4 c5 2. Nf3 e6 3. d4 cxd4 4. Nxd4 a6 5. g3 Nf6 6. Bg2 Be7 7. Nc3 Qc7 8. O-O O-O 9. Be3 Nc6 10. f4 d6 11. a4 Na5 12. Bf2 Nc4 13. b3 Na5 14. Qf3 Bd7 15. Rac1 Rac8 16. Nce2 g6 17. c4 e5 18. Nc2 Bg4 19. Qe3 Bxe2 20. Qxe2 Nxb3 21. Rb1 Nc5 22. Rb4 a5 23. Rb5 Nxa4 24. Be1 b6 25. Ne3 Nc5 26. fxe5 dxe5 27. Nd5 Nxd5 28. exd5 f5 29. Bc3 Bd6 30. Rfb1 Na4 31. Bd2 Qxc4 32. Qxc4 Rxc4 33. Be3 f4 34. Bf2 Rfc8 35. Bh3 R8c7 36. Be6+ Kg7 37. Kg2 Rc2 38. Kg1 f3 39. Re1 R7c4 40. Rb3 e4 41. Bd7 Bc5 42. Bxc5 Nxc5 43. Rxb6 f2+ 44. Kf1 fxe1=Q+ 45. Kxe1 Rxh2 {0-} 0-1

[Event "45th FIDE Womens Olympiad 2024"]
[Site "Budapest"]
[Date "2024.09.16"]
[Round "6.169"]
[White "Perez Rodriguez, Jennifer"]
[Black "Chuemsakul, Sarocha"]
[Result "1-0"]
[ECO "A13"]
[WhiteElo "2224"]
[BlackElo "1906"]
[PlyCount "97"]
[EventDate "2024.09.05"]
[EventType "team-tourn"]
[EventCountry "HUN"]
[WhiteTeam "Paraguay"]
[BlackTeam "Thailand"]
[WhiteTeamCountry "PAR"]
[BlackTeamCountry "THA"]
[TimeControl "40/5400+30:1800+30"]

1. Nf3 Nf6 2. c4 c5 3. b3 e6 4. Bb2 Nc6 5. e3 d5 6. cxd5 exd5 7. Bb5 Be7 8. O-O O-O 9. d4 Be6 10. Nc3 Rc8 11. dxc5 Bxc5 12. Na4 Be7 13. Rc1 a6 14. Bxc6 Rxc6 15. Rxc6 bxc6 16. Qd3 Qc8 17. Rc1 Ne4 18. Qd4 Bf6 19. Qb6 Bxb2 20. Rxc6 Qxc6 21. Qxc6 Rc8 22. Qxc8+ Bxc8 23. Nxb2 Nc3 24. a4 Bf5 25. Nd4 Bb1 26. Kf1 Kf8 27. Ke1 Ne4 28. f3 Nc5 29. Kd2 Bg6 30. Kc3 Ne6 31. a5 Ke7 32. Na4 Kd6 33. b4 Nc7 34. Nc5 f6 35. Kb3 h6 36. g4 Bh7 37. f4 g6 38. Nb7+ Kd7 39. Ka4 Bg8 40. b5 axb5+ 41. Kb4 Bf7 42. Nc5+ Kd6 43. Nxb5+ Nxb5 44. Kxb5 Be8+ 45. Kb6 g5 46. fxg5 fxg5 47. a6 d4 48. exd4 Bc6 49. Nb7+ 1-0

[Event "45th FIDE Womens Olympiad 2024"]
[Site "Budapest"]
[Date "2024.09.16"]
[Round "6.170"]
[White "Prommuang, Araya"]
[Black "Vargas, Gabriela"]
[Result "0-1"]
[ECO "B01"]
[WhiteElo "1753"]
[BlackElo "2109"]
[PlyCount "104"]
[EventDate "2024.09.05"]
[EventType "team-tourn"]
[EventCountry "HUN"]
[WhiteTeam "Thailand"]
[BlackTeam "Paraguay"]
[WhiteTeamCountry "THA"]
[BlackTeamCountry "PAR"]
[TimeControl "40/5400+30:1800+30"]

1. e4 d5 2. exd5 Nf6 3. d4 Bg4 4. Nf3 Qxd5 5. Nc3 Qh5 6. Be2 Nc6 7. Bb5 e6 8. Qd3 Bxf3 9. gxf3 Bb4 10. Bd2 O-O 11. Bxc6 bxc6 12. O-O-O Qa5 13. Ne4 Nxe4 14. Bxb4 Qg5+ 15. Qe3 Qxe3+ 16. fxe3 Nf2 17. Bxf8 Kxf8 18. Rhf1 Nxd1 19. Rxd1 Rb8 20. c4 Ke7 21. Kc2 f5 22. Rg1 Kf6 23. b3 g5 24. h4 gxh4 25. f4 a5 26. Rg5 a4 27. Rh5 axb3+ 28. axb3 Kg6 29. Rxh4 h5 30. Rh3 Rh8 31. Rh4 Ra8 32. Kd3 Ra1 33. Rh2 Rd1+ 34. Ke2 Rb1 35. Kf3 Rxb3 36. Rg2+ Kf6 37. c5 Rb8 38. Kg3 Rg8+ 39. Kh3 Rg4 40. Ra2 Ke7 41. Rg2 Kd7 42. Kh2 Kc8 43. Rb2 h4 44. Rg2 Kb7 45. Kh3 Rxg2 46. Kxg2 Ka6 47. Kh3 Kb5 48. Kxh4 Kc4 49. Kg3 Kc3 50. Kg2 Kc2 51. Kg3 Kd1 52. Kf3 Ke1 {0-} 0-1

[Event "45th FIDE Womens Olympiad 2024"]
[Site "Budapest"]
[Date "2024.09.16"]
[Round "6.171"]
[White "Montiel Caceres, Helen"]
[Black "Mekarapiruk, Nathasha"]
[Result "1-0"]
[ECO "D36"]
[WhiteElo "1864"]
[BlackElo "1728"]
[PlyCount "145"]
[EventDate "2024.09.05"]
[EventType "team-tourn"]
[EventCountry "HUN"]
[WhiteTeam "Paraguay"]
[BlackTeam "Thailand"]
[WhiteTeamCountry "PAR"]
[BlackTeamCountry "THA"]
[TimeControl "40/5400+30:1800+30"]

1. d4 d5 2. c4 e6 3. Nc3 Nf6 4. cxd5 exd5 5. Bg5 Be7 6. e3 c6 7. Bd3 Nbd7 8. Qc2 O-O 9. Nf3 Re8 10. O-O h6 11. Bh4 Ne4 12. Bxe4 Bxh4 13. Bh7+ Kh8 14. Nxh4 Qxh4 15. Bd3 Nf6 16. Rae1 Be6 17. f3 Rad8 18. Qf2 Qxf2+ 19. Kxf2 Re7 20. Re2 Rde8 21. Rc1 Rc8 22. Na4 Ne8 23. g4 Nd6 24. Nc5 g6 25. Bb1 Kg7 26. Nd3 Rh8 27. Nf4 h5 28. gxh5 g5 29. Rg1 Kh6 30. Nd3 Bf5 31. Ne5 Bxb1 32. Rxb1 Kxh5 33. Ree1 f6 34. Ng4 Kg6 35. Rbd1 f5 36. Ne5+ Kf6 37. Rh1 Reh7 38. Kg2 Rh3 39. b3 Nf7 40. Nd7+ Ke7 41. Nc5 Nd6 42. Rde1 Kf7 43. a4 Kg6 44. Nd3 Kf6 45. Ne5 Kg7 46. b4 R3h6 47. Rc1 a6 48. Rc5 Rf8 49. Re1 f4 50. e4 dxe4 51. fxe4 Re8 52. Ng4 Rg6 53. Kf3 Nf7 54. b5 cxb5 55. axb5 b6 56. Rc7 a5 57. e5 Kf8 58. Rec1 Re7 59. Rxe7 Kxe7 60. d5 Nh6 61. Nf6 Ng8 62. d6+ Kd8 63. Nd5 Re6 64. Nxb6 Ne7 65. Ke4 a4 66. dxe7+ Kxe7 67. Nxa4 Kf7 68. Rc7+ Ke8 69. b6 Kd8 70. Rh7 Kc8 71. b7+ Kb8 72. Nc5 Re8 73. Na6+ 1-0

[Event "45th FIDE Womens Olympiad 2024"]
[Site "Budapest"]
[Date "2024.09.16"]
[Round "6.172"]
[White "Khantree, Napat"]
[Black "Mayeregger Gonzalez, Fiorella Allegra"]
[Result "0-1"]
[ECO "D31"]
[WhiteElo "1711"]
[BlackElo "1796"]
[PlyCount "74"]
[EventDate "2024.09.05"]
[EventType "team-tourn"]
[EventCountry "HUN"]
[WhiteTeam "Thailand"]
[BlackTeam "Paraguay"]
[WhiteTeamCountry "THA"]
[BlackTeamCountry "PAR"]
[TimeControl "40/5400+30:1800+30"]

1. d4 d5 2. c4 e6 3. Nf3 a6 4. cxd5 exd5 5. Nc3 Be7 6. Bf4 Nf6 7. h3 O-O 8. e3 Nbd7 9. Bd3 b6 10. O-O Bb7 11. Qc2 c5 12. dxc5 bxc5 13. Rfd1 h6 14. Rac1 Rc8 15. b3 d4 16. Ne4 Nd5 17. Nd6 Bxd6 18. Bxd6 Re8 19. exd4 Nb4 20. Bh7+ Kh8 21. Qf5 Be4 22. Qxf7 Bxh7 23. dxc5 Bg8 24. Qf4 Nxa2 25. Ra1 Nc3 26. Re1 Ne2+ 27. Rxe2 Rxe2 28. Nd4 Re8 29. c6 Nf8 30. c7 Qd7 31. Rxa6 Ne6 32. Qf5 Bh7 33. Qg4 h5 34. Qh4 Nxc7 35. Bxc7 Qxc7 36. Ne6 Qe5 37. f4 Qe3+ {0-} 0-1

[Event "45th FIDE Womens Olympiad 2024"]
[Site "Budapest"]
[Date "2024.09.16"]
[Round "6.173"]
[White "Mongeli, Sasha"]
[Black "Timergazi, Layla"]
[Result "0-1"]
[ECO "A34"]
[WhiteElo "1819"]
[BlackElo "1979"]
[PlyCount "168"]
[EventDate "2024.09.05"]
[EventType "team-tourn"]
[EventCountry "HUN"]
[WhiteTeam "Kenya"]
[BlackTeam "New Zealand"]
[WhiteTeamCountry "KEN"]
[BlackTeamCountry "NZL"]
[TimeControl "40/5400+30:1800+30"]

1. d4 Nf6 2. c4 c5 3. Nf3 cxd4 4. Nxd4 d6 5. Nc3 b6 6. e4 Bb7 7. Bd3 g6 8. O-O Bg7 9. Be3 O-O 10. Rc1 Nbd7 11. f3 Rc8 12. b3 Nc5 13. Be2 Ne8 14. Qd2 Be5 15. f4 Bg7 16. Bf3 e6 17. f5 Be5 18. Bf2 Ng7 19. fxe6 fxe6 20. Nde2 Qe7 21. Rcd1 Nd7 22. Bg3 Rcd8 23. Nb5 Bxg3 24. Nxg3 Ne5 25. Nxa7 d5 26. exd5 exd5 27. cxd5 Ba6 28. Nc6 Nxc6 29. d6 Qd7 30. Qd5+ Kh8 31. Qxc6 Qxc6 32. Bxc6 Bxf1 33. Nxf1 Rf6 34. Ne3 Rfxd6 35. Rxd6 Rxd6 36. Bb5 Nh5 37. Nc4 Rf6 38. g3 Ng7 39. Bd7 Kg8 40. Kg2 Kf7 41. a4 Ke7 42. Bb5 Nf5 43. a5 bxa5 44. Ba4 Ra6 45. g4 Nd4 46. Kg3 Ke6 47. Kf4 Kd5 48. Ne3+ Kc5 49. Ke4 Re6+ 50. Kd3 Nf3 51. h3 Rd6+ 52. Kc3 Ng1 53. h4 Nf3 54. h5 gxh5 55. gxh5 Nd4 56. Nc4 Ra6 57. Nxa5 Ne2+ 58. Kd2 Rxa5 59. Kxe2 Kd4 60. Kf3 Rxh5 61. Kg4 Rh1 62. Be8 Kc3 63. Bf7 Rf1 64. Be6 Kd4 65. Bc4 Rh1 66. Kf5 h5 67. Kg5 h4 68. Kg4 Ke3 69. Bd5 Rd1 70. Bc4 Rd4+ 71. Kh3 Rf4 72. Bd5 Kd4 73. Bc4 Ke5 74. Bg8 Kf5 75. Bd5 Kg5 76. Be6 Re4 77. Bd5 Re3+ 78. Kh2 h3 79. b4 Kh4 80. b5 Re2+ 81. Kg1 Kg3 82. Kf1 Rb2 83. Bc6 h2 84. Ke1 Rxb5 {0-} 0-1

[Event "45th FIDE Womens Olympiad 2024"]
[Site "Budapest"]
[Date "2024.09.16"]
[Round "6.174"]
[White "Zhang, Jasmine Haomo"]
[Black "Ndirangu, Joyce Nyaruai"]
[Result "1-0"]
[ECO "A48"]
[WhiteElo "1956"]
[BlackElo "1782"]
[PlyCount "75"]
[EventDate "2024.09.05"]
[EventType "team-tourn"]
[EventCountry "HUN"]
[WhiteTeam "New Zealand"]
[BlackTeam "Kenya"]
[WhiteTeamCountry "NZL"]
[BlackTeamCountry "KEN"]
[TimeControl "40/5400+30:1800+30"]

1. d4 Nf6 2. Bf4 g6 3. e3 Bg7 4. Nd2 c5 5. c3 b6 6. Ngf3 Bb7 7. Bd3 Nc6 8. h3 d6 9. Qe2 Nd7 10. Bg3 Qc7 11. a4 a6 12. O-O O-O 13. Nb3 Qc8 14. Rfe1 e5 15. d5 Ne7 16. e4 Bh6 17. c4 a5 18. Nbd2 f5 19. Bh4 Qe8 20. Ng5 Rc8 21. Ndf3 Nf6 22. Ne6 Rf7 23. Nfg5 Bxg5 24. Nxg5 Rg7 25. Ne6 Rf7 26. f4 fxe4 27. Bxe4 Nxe4 28. Qxe4 Nf5 29. fxe5 dxe5 30. b3 Qd7 31. Rab1 Qd6 32. Bf2 Re7 33. Qxe5 Qxe5 34. Rxe5 Ng7 35. Rbe1 Rce8 36. Nxg7 Rxe5 37. Nxe8 Rxe1+ 38. Bxe1 1-0

[Event "45th FIDE Womens Olympiad 2024"]
[Site "Budapest"]
[Date "2024.09.16"]
[Round "6.175"]
[White "Mutisya, Jully"]
[Black "Ning, Isabelle Yixuan"]
[Result "0-1"]
[ECO "A47"]
[WhiteElo "1750"]
[BlackElo "1915"]
[PlyCount "74"]
[EventDate "2024.09.05"]
[EventType "team-tourn"]
[EventCountry "HUN"]
[WhiteTeam "Kenya"]
[BlackTeam "New Zealand"]
[WhiteTeamCountry "KEN"]
[BlackTeamCountry "NZL"]
[TimeControl "40/5400+30:1800+30"]

1. d4 Nf6 2. Bf4 e6 3. e3 c5 4. c3 b6 5. Nd2 Bb7 6. Ngf3 Be7 7. Bd3 cxd4 8. exd4 O-O 9. O-O d6 10. Re1 Re8 11. Qe2 Nbd7 12. Ne4 Nxe4 13. Bxe4 Bxe4 14. Qxe4 Nf6 15. Qd3 Qd7 16. Rad1 b5 17. Nd2 Qc6 18. Rc1 Nd5 19. Bg3 Nb6 20. b3 d5 21. c4 bxc4 22. bxc4 dxc4 23. Nxc4 Rac8 24. Ne3 Qxc1 25. Rxc1 Rxc1+ 26. Nf1 Nd5 27. h3 h5 28. h4 Rec8 29. Kh2 Ra1 30. Qb5 a6 31. Qxa6 Rcc1 32. Qa8+ Kh7 33. Qe8 Rxf1 34. Be5 Bxh4 35. Kh3 Rh1+ 36. Bh2 Nf6 37. Qxf7 Rxh2+ {0-} 0-1

[Event "45th FIDE Womens Olympiad 2024"]
[Site "Budapest"]
[Date "2024.09.16"]
[Round "6.176"]
[White "Braganza, Nadia"]
[Black "Karanja, Ether"]
[Result "1-0"]
[ECO "E16"]
[WhiteElo "1890"]
[BlackElo "1637"]
[PlyCount "89"]
[EventDate "2024.09.05"]
[EventType "team-tourn"]
[EventCountry "HUN"]
[WhiteTeam "New Zealand"]
[BlackTeam "Kenya"]
[WhiteTeamCountry "NZL"]
[BlackTeamCountry "KEN"]
[TimeControl "40/5400+30:1800+30"]

1. c4 e6 2. g3 d5 3. Bg2 Nf6 4. Nf3 b6 5. O-O Bb7 6. d4 c5 7. cxd5 exd5 8. Nc3 Be7 9. Qb3 O-O 10. dxc5 Bxc5 11. Bg5 Nbd7 12. Rad1 Qe8 13. Nd4 Bxd4 14. Rxd4 Nc5 15. Qc2 Nce4 16. Nxd5 Bxd5 17. Bxf6 Nxf6 18. Bxd5 Nxd5 19. Rxd5 Rc8 20. Qd3 Rc7 21. Rd1 Qc6 22. Rd8 g6 23. Rxf8+ Kxf8 24. Qe3 Rd7 25. Rc1 Qf6 26. Rc8+ Rd8 27. Rc7 Re8 28. Qd2 Qe5 29. Qd7 Re7 30. Qxe7+ Qxe7 31. Rxe7 Kxe7 32. Kg2 Ke6 33. Kf3 Ke5 34. Ke3 f5 35. Kd3 b5 36. Kc3 a5 37. a4 bxa4 38. Kc4 a3 39. bxa3 Kd6 40. Kb5 h5 41. Kxa5 Kc5 42. a4 g5 43. h4 g4 44. Ka6 Kc6 45. a5 1-0

[Event "45th FIDE Womens Olympiad 2024"]
[Site "Budapest"]
[Date "2024.09.16"]
[Round "6.177"]
[White "Pang, Kay Yan Eden"]
[Black "Thornton, Filipina"]
[Result "1-0"]
[ECO "D78"]
[WhiteElo "1847"]
[BlackElo "1768"]
[PlyCount "57"]
[EventDate "2024.09.05"]
[EventType "team-tourn"]
[EventCountry "HUN"]
[WhiteTeam "Singapore"]
[BlackTeam "Malta"]
[WhiteTeamCountry "SIN"]
[BlackTeamCountry "MLT"]
[TimeControl "40/5400+30:1800+30"]

1. d4 Nf6 2. c4 g6 3. g3 c6 4. Bg2 Bg7 5. Nf3 O-O 6. O-O d5 7. Nc3 Nbd7 8. Qc2 Nb6 9. cxd5 cxd5 10. Ne5 Ng4 11. Nxg4 Bxg4 12. Rd1 Rc8 13. Qb3 Be6 14. a4 a5 15. Qb5 Nc4 16. Bxd5 Bxd5 17. Nxd5 Nd6 18. Qb3 e6 19. Nc3 Rc4 20. d5 Rb4 21. Qc2 exd5 22. Nxd5 Rd4 23. Be3 Rxd1+ 24. Rxd1 Nf5 25. Bc5 Re8 26. Ne7+ Qxe7 27. Bxe7 Rxe7 28. Rd8+ Bf8 29. Qc8 1-0

[Event "45th FIDE Womens Olympiad 2024"]
[Site "Budapest"]
[Date "2024.09.16"]
[Round "6.178"]
[White "Farrugia, Jamie"]
[Black "Rice, Lauren"]
[Result "1/2-1/2"]
[ECO "B07"]
[WhiteElo "1733"]
[BlackElo "1824"]
[PlyCount "65"]
[EventDate "2024.09.05"]
[EventType "team-tourn"]
[EventCountry "HUN"]
[WhiteTeam "Malta"]
[BlackTeam "Singapore"]
[WhiteTeamCountry "MLT"]
[BlackTeamCountry "SIN"]
[TimeControl "40/5400+30:1800+30"]

1. e4 c5 2. c3 d6 3. d4 Nf6 4. Bd3 g6 5. Nf3 Bg7 6. O-O O-O 7. h3 Nbd7 8. Bf4 Nh5 9. Bh2 cxd4 10. cxd4 Qb6 11. Nc3 Bh6 12. Nd5 Qd8 13. Re1 Nb6 14. Ne3 Nf4 15. Ng4 Bxg4 16. hxg4 Nxd3 17. Qxd3 Rc8 18. g5 Bg7 19. Rac1 Qd7 20. b3 Rc6 21. Rxc6 Qxc6 22. Bf4 Qd7 23. Rc1 Rc8 24. Rc2 Rc6 25. Be3 Qc7 26. Rxc6 bxc6 27. Nd2 Qb7 28. Qc2 e6 29. Nc4 Nxc4 30. bxc4 f6 31. gxf6 Bxf6 32. Qb3 Qxb3 33. axb3 1/2-1/2

[Event "45th FIDE Womens Olympiad 2024"]
[Site "Budapest"]
[Date "2024.09.16"]
[Round "6.179"]
[White "Koh, Wei Le Gladys"]
[Black "Stagno, Milena"]
[Result "1-0"]
[ECO "B31"]
[WhiteElo "1788"]
[BlackElo "1664"]
[PlyCount "137"]
[EventDate "2024.09.05"]
[EventType "team-tourn"]
[EventCountry "HUN"]
[WhiteTeam "Singapore"]
[BlackTeam "Malta"]
[WhiteTeamCountry "SIN"]
[BlackTeamCountry "MLT"]
[TimeControl "40/5400+30:1800+30"]

1. e4 c5 2. Nf3 Nc6 3. Bb5 g6 4. O-O Bg7 5. c3 Nf6 6. Re1 O-O 7. d4 cxd4 8. cxd4 a6 9. Bf1 d6 10. h3 b5 11. a3 Bb7 12. Nc3 Rc8 13. Bg5 Re8 14. Qd3 Na5 15. Rad1 Nc4 16. Bc1 Qc7 17. a4 b4 18. Nb1 a5 19. b3 Nb6 20. Bf4 Qc2 21. Qb5 Qc6 22. d5 Qxb5 23. Bxb5 Red8 24. Nbd2 Nfd7 25. Be3 Nc5 26. Nd4 Nbd7 27. f3 Ne5 28. Nc4 Nxc4 29. Bxc4 Nxa4 30. Ra1 Nc3 31. Rxa5 Ra8 32. Rxa8 Rxa8 33. Nc2 Ba6 34. Nxb4 Bxc4 35. bxc4 Ra4 36. Nc6 Kf8 37. c5 Nb5 38. Rb1 Ra1 39. Rxa1 Bxa1 40. cxd6 Nxd6 41. Bd4 Bxd4+ 42. Nxd4 Kg7 43. Kf2 Kf6 44. g3 e6 45. dxe6 fxe6 46. Nc6 e5 47. Ke3 g5 48. g4 Nc4+ 49. Kf2 h6 50. Nb4 Ke6 51. Nd5 Nd2 52. Ke2 Nb3 53. Kf2 Nd4 54. Ne3 Kf6 55. Nf5 Ne6 56. Nxh6 Nf4 57. Kg3 Ne2+ 58. Kg2 Nf4+ 59. Kh2 Ne2 60. Nf5 Nd4 61. Nxd4 exd4 62. Kg2 Ke5 63. Kf2 Kf4 64. Ke2 d3+ 65. Kxd3 Kxf3 66. e5 Kg3 67. Ke4 Kxh3 68. Kf5 Kh4 69. e6 1-0

[Event "45th FIDE Womens Olympiad 2024"]
[Site "Budapest"]
[Date "2024.09.16"]
[Round "6.180"]
[White "Portelli, Martina"]
[Black "Fang, Kun"]
[Result "0-1"]
[ECO "C54"]
[WhiteElo "1523"]
[BlackElo "1769"]
[PlyCount "142"]
[EventDate "2024.09.05"]
[EventType "team-tourn"]
[EventCountry "HUN"]
[WhiteTeam "Malta"]
[BlackTeam "Singapore"]
[WhiteTeamCountry "MLT"]
[BlackTeamCountry "SIN"]
[TimeControl "40/5400+30:1800+30"]

1. e4 e5 2. Nf3 Nc6 3. Bc4 Bc5 4. c3 Nf6 5. d3 d6 6. O-O a6 7. Bb3 Ba7 8. Re1 h6 9. Nbd2 O-O 10. Nf1 Re8 11. Ng3 Be6 12. Bc2 d5 13. exd5 Bxd5 14. Be3 Bxe3 15. Rxe3 Qd7 16. h3 Re7 17. d4 Rae8 18. dxe5 Nxe5 19. Nxe5 Rxe5 20. Rxe5 Rxe5 21. Bb3 Qe7 22. Bxd5 Nxd5 23. Qf3 c6 24. Nf5 Qf6 25. g4 g6 26. Nd4 Qxf3 27. Nxf3 Re2 28. Rb1 Nf4 29. Kf1 Rc2 30. Nd4 Rd2 31. h4 Nd3 32. Ne2 Rxb2 33. Rxb2 Nxb2 34. Ng3 Na4 35. Ne4 f5 36. gxf5 gxf5 37. Nd6 Nxc3 38. Nxf5 Kh7 39. Nd6 b5 40. Nb7 Nxa2 41. Ke2 Kg6 42. Ke3 Kh5 43. Kd4 Kxh4 44. f4 Nc1 45. f5 Kg5 46. Ke5 Nd3+ 47. Ke6 Nf4+ 48. Ke5 Nd5 49. Na5 b4 50. Nxc6 b3 51. Nd4 b2 52. Nf3+ Kg4 53. Nd2 Ne7 54. f6 Ng6+ 55. Kd4 h5 56. Kc3 h4 57. Kxb2 h3 58. Nf1 Kf3 59. Nh2+ Kg3 60. Nf1+ Kg2 61. Ne3+ Kf3 62. Nf1 Ne5 63. Nh2+ Kf4 64. Kb3 Kf5 65. Ka4 Kxf6 66. Ka5 Kf5 67. Kxa6 Kf4 68. Kb5 Kg3 69. Nf1+ Kf2 70. Nd2 h2 71. Ne4+ Kg2 {0-} 0-1